Cogmind - Beta 17.1 @@@ ROGUE MODE // 2026.09.21 @ 00:45:03 Player: eph7ra Result: Destroyed by G-47 Trooper with Particle Gun Performance ------------- Evolutions (0) 0 Regions Visited (1) 200 Robots Destroyed (9) 45 Value Destroyed (134) 134 Prototype IDs (0) 0 Alien Tech Used (0) 0 Bonus (0) 0 TOTAL SCORE: 379 Bonus ------- None Cogmind --------- Core Integrity 0/250 Matter 296/300 Energy 100/100 System Corruption 2% Temperature Cool (15) Movement Treading (160) Location -10/Materials Parts ------- > --- POWER (1) -------- (None) > --- PROPULSION (2) --- Light Treads Light Treads > --- UTILITY (2) ------ Large Storage Unit > --- WEAPON (2) ------- (None) > --- INVENTORY (15) --- Ion Engine Aluminum Leg Compact Wheel Compact Wheel Small Storage Unit EM Pulse Gun Light Assault Rifle Peak State ------------ > --- POWER ------------ Ion Engine > --- PROPULSION ------- Aluminum Leg Aluminum Leg > --- UTILITY ---------- Small Storage Unit Large Storage Unit > --- WEAPON ----------- Light Assault Rifle Light Assault Rifle > --- INVENTORY -------- Ion Engine Light Treads Light Treads Aluminum Leg Compact Wheel Compact Wheel EM Pulse Gun [Rating: 7] Favorites ----------- Power Light Ion Engine Engine Light Ion Engine Propulsion Aluminum Leg Treads Light Treads Leg Aluminum Leg Utility Large Storage Unit Storage Large Storage Unit Weapon Light Assault Rifle Ballistic Gun Light Assault Rifle Build | -11 -10 ------- Run | Yrd Mat Slots Evolved . | . . Power . | . . Propulsion . | . . Utility . | . . Weapon . | . . Parts Attached 15 | 6 9 Power 5 | 1 4 Engine 5 | 1 4 Core . | . . Reactor . | . . Propulsion 6 | 2 4 Treads 2 | . 2 Leg 4 | 2 2 Wheel . | . . Hover . | . . Flight . | . . Utility 2 | 1 1 Device . | . . Storage 2 | 1 1 Processor . | . . Hackware . | . . Protection . | . . Artifact . | . . Weapon 2 | 2 . Energy Gun . | . . Energy Cannon . | . . Ballistic Gun 2 | 2 . Ballistic Cannon . | . . Launcher . | . . Special Weapon . | . . Impact Weapon . | . . Slashing Weapon . | . . Piercing Weapon . | . . Special Melee Weapon . | . . Unidentified Prototypes . | . . Parts Lost 7 | . 7 Power 2 | . 2 Propulsion 3 | . 3 Utility . | . . Weapon 2 | . 2 Highest Loss Streak 5 | . 5 To Critical Strikes . | . . Average Backups 7 | 4 8 Power . | . 1 Propulsion 4 | 2 4 Utility . | . . Weapon 1 | . 1 Tool/Special . | . . Unused Backups 5 | . 5 Power 1 | . 1 Propulsion 2 | . 2 Utility . | . . Weapon 2 | . 2 Tool/Special . | . . Average Slot Usage (%) 81 | . 81 Engine 13 | . 13 Leg 26 | . 26 Storage 14 | . 14 Ballistic Gun 26 | . 26 Peak Build Rating 7 | 6 7 Average Rating 5 | 4 5 On Entrance 3 | . 6 Avg Prop Armor Cover (%) . | . . Naked Turns . | . . Heaviest Build 27 | 10 27 Greatest Support 40 | 20 40 Greatest Overweight (x) 6 | 3 6 Average Overweight (x) . | . . Largest Inventory Capacity 15 | 8 15 Average Capacity 12 | 7 12 Most Carried 10 | 6 10 Average Carried 7 | 4 8 Final Capacity 15 | 8 15 Final Carried 7 | 6 7 Class Distribution -------------------- 100% | Mutant Dominant Class ---------------- Mutant | -10/Materials Resources | -11 -10 ----------- Run | Yrd Mat Matter Collected 379 | 210 169 Remotely . | . . Salvage Created 231 | 62 169 Parts 24 | 3 21 Haulers Intercepted . | . . Recyclers Shooed . | . . Parts Field Recycled . | . . Retrieved Matter . | . . Parts Self-Destructed . | . . Prevented . | . . Parts Restored . | . . Kills | -11 -10 ------- Run | Yrd Mat Combat Hostiles Destroyed 8 | . 8 Guns 8 | . 8 Classes Destroyed 3 | 1 2 Recycler 1 | 1 . Swarmer 6 | . 6 Grunt 2 | . 2 Best Kill Streak 3 | 1 3 Combat Bots Only 3 | . 3 Max Kills in Single Turn 1 | 1 1 Gunslinging . | . . Exploded . | . . Melee . | . . Uniques/NPCs Destroyed . | . . Combat | -11 -10 -------- Run | Yrd Mat Hostile Shots Fired 116 | . 116 Missed 19 | . 19 Hits 97 | . 97 Projectile 97 | . 97 Critical Strikes 1 | . 1 Damage Taken 1014 | . 1014 Core 255 | . 255 Absorbed by Shields . | . . Core Remaining (%) 100 | 100 . Volleys Fired 50 | 3 47 Largest 2 | 2 2 Hottest 40 | 40 40 Shots Fired 100 | 6 94 Gun 100 | 6 94 Cannon . | . . Launcher . | . . Special . | . . Kinetic 100 | 6 94 Thermal . | . . Explosive . | . . Electromagnetic . | . . Robot Hit Streak 7 | 1 7 Robot Miss Streak 3 | 3 3 Penetration Max . | . . Secondary Targets . | . . Shots Hit Robots 58 | 2 56 Core Hits 24 | 2 22 Critical Kills . | . . Critical Parts Destroyed 1 | . 1 Critical Strikes 1 | . 1 Destroy 1 | . 1 Melee Attacks . | . . Impact . | . . Slashing . | . . Piercing . | . . Sneak Attacks . | . . Combat Hostiles . | . . Follow-up Attacks . | . . Damage Inflicted 471 | 16 455 Guns 459 | 16 443 Cannons . | . . Explosions . | . . Melee . | . . Ramming 12 | . 12 Kinetic 459 | 16 443 Thermal . | . . Explosive . | . . Electromagnetic . | . . Impact . | . . Slashing . | . . Piercing . | . . Highest Corruption 2 | . 2 Average Corruption 2 | . 2 Corruption Purged . | . . Corruption Blocked . | . . Effects 1 | . 1 Data Loss (minor) 1 | . 1 Overload Shots . | . . Overflow Damage . | . . Projectiles . | . . Explosions . | . . Melee . | . . Knockbacks . | . . Impact . | . . Kinetic . | . . Secondary . | . . Self-Inflicted Damage . | . . Shots . | . . Rammed 8 | . 8 Targets Rammed 11 | . 11 Kicked 3 | . 3 Crushed . | . . Highest Temperature 18 | . 18 Average Temperature 8 | . 8 Received Heat Transfer 369 | . 369 Siege Activations . | . . Martial Activations . | . . Shielding Activations . | . . Robots Disrupted . | . . Combat Hostiles . | . . Robots Corrupted . | . . Combat Hostiles . | . . Parts Fried . | . . Impact Corruptions . | . . Robots Melted . | . . Combat Hostiles . | . . Parts Melted . | . . Heat Transferred . | . . Parts Sabotaged . | . . Parts Stolen . | . . Parts Stripped . | . . Power Chain Reactions . | . . Alert | -11 -10 ------- Run | Yrd Mat Maximum Alert Level . | . . Low Security (%) 100 | 100 100 Level 1 . | . . Level 2 . | . . Level 3 . | . . Level 4 . | . . Level 5 . | . . High Security . | . . Max Security . | . . Peak Influence 80 | 5 80 Initial . | . . Average 18 | . 20 Influence Increases 270 | 5 265 Destroy 0b10 Robot/C 160 | . 160 Destroy 0b10 Robot/NC 5 | 5 . Destroy Leader 30 | . 30 Lose Combat Pursuer 75 | . 75 Influence Decreases 258 | 5 253 Time Decay 228 | 5 223 Lost Part 30 | . 30 Squads Dispatched 2 | . 2 Investigation . | . . Extermination . | . . Reinforcement 2 | . 2 Assault . | . . Garrison . | . . Intercept . | . . Searches Triggered . | . . Construction Impeded . | . . Haulers Reinforced . | . . Active Scanning Responses . | . . Cargo Convoy Interrupts . | . . Stealth | -11 -10 --------- Run | Yrd Mat Distress Signals 2 | . 2 Communications Jammed . | . . Distress Signals . | . . Times Spotted 22 | . 22 Peak Tracking Total 6 | . 6 Tactical Retreats 4 | . 4 Traps | -11 -10 ------- Run | Yrd Mat Traps Triggered . | . . Indirectly . | . . Trap Hack Attempts . | . . Triggered . | . . Disarmed . | . . Reprogrammed . | . . Reused . | . . Traps Extracted . | . . Installed . | . . Triggered . | . . Machines | -11 -10 ---------- Run | Yrd Mat Machines Disabled . | . . Max in Single Turn . | . . Machines Repaired . | . . Machines Dismantled . | . . Machines Sabotaged . | . . Overloaded Fab Kills . | . . Hacking | -11 -10 --------- Run | Yrd Mat Machines Accessed 3 | . 3 Terminals 3 | . 3 Fabricators . | . . Repair Stations . | . . Recycling Units . | . . Scanalyzers . | . . Garrison Access . | . . Total Hacks 8 | . 8 Successful 5 | . 5 Failed 3 | . 3 Catastrophic . | . . Database Lockouts . | . . Manual 8 | . 8 Terminals 8 | . 8 Fabricators . | . . Repair Stations . | . . Recycling Units . | . . Scanalyzers . | . . Garrison Access . | . . Terminal Hacks 2 | . 2 Robot Analysis 1 | . 1 Terminal Index 1 | . 1 Fabricator Hacks . | . . Repair Station Hacks . | . . Recycling Unit Hacks . | . . Scanalyzer . | . . Garrison Access Hacks . | . . Unauthorized Hacks 3 | . 3 Terminals 3 | . 3 Botnet 2 | . 2 Skim 1 | . 1 Fabricators . | . . Repair Stations . | . . Recycling Units . | . . Scanalyzers . | . . Garrison Access . | . . Data Cores Recovered . | . . Used . | . . Hacking Detections 2 | . 2 Full Trace Events . | . . Feedback Events . | . . Feedback Blocked . | . . Robot Schematics Acquired . | . . Robots Built . | . . Authchips . | . . Time . | . . Total Robot Build Rating . | . . Part Schematics Acquired . | . . Parts Built . | . . Authchips . | . . Time . | . . Total Part Build Rating . | . . Part Studies Acquired . | . . Parts Repaired . | . . Time . | . . Parts Recycled . | . . Recycled Matter . | . . Retrieved Matter . | . . Retrieved Components . | . . Parts Scanalyzed . | . . Part Schematics Acquired . | . . Parts Damaged . | . . Bothacking | -11 -10 ------------ Run | Yrd Mat Used RIF Installer . | . . Robots Hacked . | . . Non-combat . | . . Combat . | . . Robot Hacks Applied . | . . Relay Couplers Released . | . . Fabnet Peak Effective % . | . . Robots Rewired . | . . Allies Hacked . | . . Hacks Repelled . | . . Allies | -11 -10 -------- Run | Yrd Mat Total Allies . | . . Largest Group . | . . Highest-Rated Group . | . . Highest-Rated Ally . | . . Total Orders . | . . Ally Attacks . | . . Total Damage . | . . Kills . | . . Allies Corrupted . | . . Allies Melted . | . . Intel | -11 -10 ------- Run | Yrd Mat Active Infowar (turns) . | . . Robot Analysis Total 1 | . 1 Derelict Logs Recovered . | . . Drone Launches . | . . Drone Recoveries . | . . Exploration | -11 -10 ------------- Run | Yrd Mat Turns Passed 890 | 93 797 Spaces Moved 430 | 58 372 Core 19 | 18 1 Treads 5 | . 5 Legs 406 | 40 366 Wheels . | . . Hover . | . . Flight . | . . Fastest Speed 50 | 50 120 Average Speed 161 | 122 167 Slowest Speed 350 | 200 350 Overloaded Moves . | . . Propulsion Burnouts . | . . Robots Hopped . | . . Potential Cave-ins . | . . Cave-ins Triggered . | . . Exploration Rate (%) 26 | 4 49 Regions Visited 1 Branch Regions . Pre-discovered Areas . | . . Known Exits Taken . | . . Unknown Exits Taken 1 | 1 . Scrap Searched . | . . Spaces Dug . | . . Terrain Destroyed . | . . Melee . | . . Projectile . | . . AOE . | . . Terrain Rammed . | . . Walls Destroyed . | . . Machines Disabled . | . . Actions | -11 -10 --------- Run | Yrd Mat Total 527 | 72 455 Wait 12 | . 12 Move 429 | 57 372 Hop . | . . Pick Up 7 | 6 1 Fast Attach 9 | 6 3 Attach 2 | . 2 Detach 1 | . 1 Swap 4 | . 4 Drop 2 | . 2 Fire 50 | 3 47 Melee . | . . Ram 3 | . 3 Kick 3 | . 3 Crush 5 | . 5 Escape Stasis . | . . Rewire . | . . Trap . | . . Miscellaneous . | . . Route ------- -11/Scrapyard -10/Materials (discovered 2 exits: [*Mat] / [*Min]) History --------- Turn | Location | Event 16 | -11/Scrapyard | Discovered new exit (range 15) 94 | -11/Scrapyard | Entered Materials 109 | -10/Materials | Discovered new exit (range 16) 317 | -10/Materials | Build established: Mutant 584 | -10/Materials | Discovered new exit (range 16) 861 | -10/Materials | Core integrity fell below 50% 875 | -10/Materials | Core integrity fell below 20% 891 | -10/Materials | Destroyed by G-47 Trooper with Particle Gun Last Messages --------------- 00707_ Connecting with Terminal... 00745_ Acquired 20 matter. 00840_ Aluminum Leg destroyed. 00852_ Lgt. Assault Rifle destroyed. 00854_ Kicked G-47 Trooper. 00858_ Aluminum Leg destroyed. 00859_ Slammed into G-47 Trooper. 00859_ Destabilizing: System corrupted (+2). 00860_ O-16 Technician: "IFF HANDSHAKE FAILED. SECURING TERMINAL." 00860_ Lgt. Ion Engine destroyed. 00863_ Slammed into G-34 Mercenary. 00865_ ALERT: Hostiles spotted, dispatching reinforcements to Terminal M003. 00865_ Lgt. Assault Rifle destroyed. 00867_ Slammed into G-34 Mercenary. 00876_ Slammed into S-10 Pest. 00878_ Slammed into G-47 Trooper. 00881_ Slammed into G-34 Mercenary. 00884_ System corrupted: Component data lost. 00887_ Slammed into K-01 Serf. Map ----- +----------------------------------------------------+ | | | | | | | | | | | | | | | | | | | | | | | | | | | | | ###############??????????????????????????????????? | | # ??????????????????????????????????? | | """ # """ ??????????????????????????????????? | | """ # ""????????????????????????????????????? | | """ # ??????????????????????????????????????? | | # ?????????????#####??????????????????????? | | #+####+################ #??????????????????????? | | < #??????????????????????? | | kk #??????????????????????? | | ## """ ###+##########s #??????????????????????? | | # """ # #???????# #??????????????????????? | | + """ # #???????# @#??????????????????????? | | # """ # #???????# #??????????????????????? | | # # #???????# #?##########???????????? | | ?# # [ #???????# #?# #???????????? | | ?# # !#???????# #?# #???????????? | | ?# # #???????# #?# #???????????? | | ?# !! # #???????#ggs### #???????????? | | ## !! # #???????# /% #???????????? | | # ! ###/###??????# g ### + "????????? | | + #??????### #?# # ???????? | | # +????????# #?# #???????????? | | # "" #????????# #?# #???????????? | | ## T" #????????# ############???????????? | | ?# "" #????????# ^ #???????????????? | | ?# +????????# #???????????????? | | ?# #????????# ^ #???????????????? | | ?#+#####+#### #????????#!! #???????????????? | | ?# ???????? #????????#!! #???????????????? | | ?# ?????? ???????#! #???????????????? | | ?# ???? ???????# # #????????????? | | ?# ?? #??????# #????????????? | | ?# #? #??????# # #????????????? | | ?# #?+##+#?????## #### #?##????????????? | | ?# #???????????# "# #???????????????? | | ?# #???????????# ""#?#???????????????? | +----------------------------------------------------+ Best States ------------- Heat Dissipation 25 Energy Generation 10 Energy Capacity 250 Matter Stores 300 Matter Capacity 300 Sight Range 16 Terrain Scan Density 10 Evasion (%) 55 Recoil Reduction 2 Item Schematics ----------------- None Robot Schematics ------------------ None Fabricated ------------ Nothing Repaired ---------- Nothing Studied --------- None Alien Tech Used ----------------- None Achievements -------------- None Challenges ------------ None Game ------ Seed SalvagingRiotCutter Manual? 0 Play Time 00:12:53 Cumulative 41.3 hours Start 2026.09.19 @ 10:45:09 End 2026.09.21 @ 00:45:03 Sessions 4 Manual Loads 0 Difficulty Rogue Special Mode None Game No. 64 Rogue 59 Adventurer 1 Explorer 4 Win Type - Total 1 Types 1/0/0/0/0/0/0/0/0/0 Lore% 13 Gallery% 27 Achievement% 24 Wizard Run 0 Options --------- Layout 0 ASCII 0 Keyboard 0 Movement Arrows Keybinds 0 Fullscreen 2 Font 18/SmallcapsGlow Map View 76x50 Zoom Use 0% Tactical HUD 1 Map Filters NONE Filters NONE Steam 1 RUN: ec4b647a-b2f6-4a47-a8fe-192edbd36f17